[Event "2nd Doppelbauer Kiel GM 2022"]
[Site "Kiel"]
[Date "2022.06.30"]
[Round "3.4"]
[White "Hacker, Jonas"]
[Black "Meshkovs, Nikita"]
[Result "0-1"]
[ECO "B31"]
[WhiteElo "2396"]
[BlackElo "2553"]
[Annotator "TA"]
[PlyCount "116"]
[EventDate "2022.06.30"]
[EventType "tourn"]
[EventCountry "GER"]
[SourceTitle "playchess.com"]
[Source "ChessBase"]
[SourceQuality "1"]
[TimeControl "40/5400+30:1800+30"]

{[%evp 17,116,6,-9,0,22,18,27,32,33,25,23,25,22,41,53,34,25,0,0,0,0,0,0,0,0,0,0,0,0,-7,-5,-39,0,0,0,0,0,3,16,0,0,0,0,-75,0,-7,-6,-14,-9,-42,-40,-54,-55,-78,-82,-116,-98,-117,-110,-111,-110,-118,-114,-109,-91,-97,-107,-120,-126,-129,-129,-129,-128,-137,-131,-127,-118,-154,-137,-125,-132,-136,-133,-134,-135,-152,-148,-149,-149,-285,-254,-360,-315,-452,-443,-490,-501,-689,-681,-755,-551]} 1. e4 {[%emt 0:00:04]} c5 {[%emt 0:00:06]} 2. Nf3 {[%emt 0:00:05]} Nc6 {[%emt 0:00:06]} 3. Bb5 {[%emt 0:00:06]} g6 {[%emt 0:00:06]} 4. O-O {[%emt 0:00:13]} Bg7 {[%emt 0:00:03]} 5. c3 {[%emt 0:00:32]} Nf6 {[%emt 0:00:06]} 6. Re1 {[%emt 0:00:25]} O-O {[%emt 0:00:04]} 7. d4 {[%emt 0:00:09]} d5 {[%emt 0:00:03]} 8. e5 {[%emt 0:00:18]} Ne4 {[%emt 0:00:02]} 9. Bxc6 {[%emt 0:00:21]} bxc6 {[%emt 0:00:02]} 10. Be3 {[%emt 0:00:25] is currently scoring better than 10.Nbd2. B31: Sicilian: 2...Nc6 3 Bb5 g6.} Rb8 {[%emt 0:22:16]} 11. Qc1 {[%emt 0:04:23]} Qb6 {[%emt 0:03:53]} 12. b3 {[%emt 0:01:38] White has an edge.} cxd4 {[%emt 0:09:33]} 13. cxd4 {[%emt 0:01:30]} Qa5 $5 {[%emt 0:00:08][%mdl 4] An interesting side line.} 14. Nbd2 {[%emt 0:07:29]} Bf5 {[%emt 0:00:18]} 15. Nxe4 {[%emt 0:06:47]} Bxe4 {[%emt 0:00:02]} 16. Nd2 {[%emt 0:03:37]} Bf5 {[%emt 0:00:02] [#]} 17. Nf1 $146 {[%emt 0:14:43]} ({Predecessor:} 17. Qb2 Rfc8 18. Rec1 Bf8 19. Rc3 Qa6 20. Nf3 Be4 21. Ne1 h5 22. h3 Bf5 23. Rac1 {1-0 (39) Smeets,J (2585)-Mamedov,R (2659) Wijk aan Zee 2020}) 17... Rfc8 {[%emt 0:03:39]} 18. Ng3 {[%emt 0:05:56]} Bd7 {[%emt 0:03:27]} 19. Bg5 {[%emt 0:03:36]} Bf8 {[%emt 0:06:39]} 20. Bh6 {[%emt 0:02:36]} c5 {[%emt 0:05:05]} 21. Bxf8 {[%emt 0:01:47]} cxd4 {[%emt 0:02:13]} 22. Qf4 {[%emt 0:07:46]} Rxf8 {[%emt 0:00:38]} 23. Qxd4 {[%emt 0:01:03]} Rfc8 {[%emt 0:02:42]} 24. Qf4 {[%emt 0:06:07]} Qb4 {[%emt 0:02:53]} (24... Be6 $5 {[%cal Rc8c2]}) 25. Qe3 {[%emt 0:02:47]} Qb6 {[%emt 0:04:50]} 26. Qd2 {[%emt 0:01:09]} Rc5 {[%emt 0:01:31]} 27. Ne2 {[%emt 0:02:59]} Qb4 {[%emt 0:01:57]} 28. Qg5 {[%emt 0:03:19]} Rc2 {[%emt 0:02:03][%cal Oc2a2]} 29. a3 $1 {[%emt 0:01:44]} Qe4 $36 {[%emt 0:06:35][%mdl 2048] Black is pushing.} (29... Qxb3 $2 30. Nd4 Qc4 31. Nxc2 Qxc2 32. Qxe7 $18) 30. Nf4 {[%emt 0:05:38]} (30. f3 $11 Qd3 31. Rad1 Qxb3 32. Nd4) 30... Qf5 {[%emt 0:02:45]} (30... Qd4 $17 31. Qg3 Rb6) 31. Qxf5 {[%emt 0:01:06]} Bxf5 {[%emt 0:00:01]} 32. Nxd5 {[%emt 0:00:27]} Be6 {[%emt 0:00:01]} 33. Nb4 {[%emt 0:02:48]} ({Wrong is} 33. Nxe7+ $2 Kf8 34. Nxg6+ hxg6 $19) (33. Ne3 $5 {[%cal Re3c2]} Rc5 34. b4 Rxe5 35. Rec1 $11) 33... Rc3 {[%emt 0:00:02]} 34. Rec1 {[%emt 0:01:23]} Rbc8 {[%emt 0:00:34]} ({Of course not} 34... Rxb3 35. Nc6 Re8 36. Nd4 $11) 35. Rxc3 {[%emt 0:05:45]} Rxc3 $15 {[%emt 0:00:02][%mdl 4096] Endgame KRB-KRN} 36. h3 {[%emt 0:01:41]} Bxb3 {[%emt 0:00:59]} 37. Rb1 {[%emt 0:01:09][%cal Ob4c6]} a5 {[%emt 0:05:00][%cal Ba7a5,Ba5a4][%mdl 32]} 38. Nc6 {[%emt 0:01:35] [#]} a4 $1 {[%emt 0:00:01]} 39. Nd4 {[%emt 0:00:58]} ({But not} 39. Nxe7+ $2 Kf8 40. Nxg6+ hxg6 $19) 39... Bd5 {[%emt 0:00:01]} 40. Ra1 {[%emt 0:03:31]} Kg7 {[%emt 0:07:25]} 41. Ne2 {[%emt 0:06:35]} Rc2 {[%emt 0:02:55]} 42. Nf4 {[%emt 0:03:24]} Bb3 {[%emt 0:01:10]} 43. h4 {[%emt 0:01:35]} Rc4 {[%emt 0:06:32]} 44. g3 {[%emt 0:00:29]} Rc5 {[%emt 0:04:51]} 45. Re1 {[%emt 0:01:54]} h6 {[%emt 0:00:41]} 46. Ng2 {[%emt 0:04:22]} Bd5 {[%emt 0:03:02]} 47. Re3 {[%emt 0:02:41]} Rc1+ {[%emt 0:00:55]} 48. Re1 {[%emt 0:00:18]} Rc3 {[%emt 0:00:09]} 49. Ra1 {[%emt 0:01:17]} Bf3 {[%emt 0:01:58]} 50. Ne1 {[%emt 0:00:38]} Be4 {[%emt 0:00:11]} 51. Kf1 {[%emt 0:04:32]} Rc5 {[%emt 0:00:43] Black is more active.} 52. f3 {[%emt 0:00:54]} Bc6 {[%emt 0:00:02]} 53. f4 {[%emt 0:00:21]} (53. Kf2 $17 {was called for.}) 53... Rc3 $19 {[%emt 0:00:02]} 54. Kf2 {[%emt 0:00:38]} (54. g4 $142) 54... e6 {[%emt 0:04:17]} 55. Ra2 {[%emt 0:03:04]} (55. Ke2 {was worth a try.}) 55... Bd5 {[%emt 0:00:19] Black is clearly winning.} 56. Ra1 {[%emt 0:00:37]} h5 {[%emt 0:02:12]} 57. Rd1 {[%emt 0:00:57]} Rxa3 {[%emt 0:00:03]} 58. Rd2 {[%emt 0:00:26]} Rb3 {[%emt 0:02:20] Weighted Error Value: White=0.21 (precise) /Black=0.05 (flawless)} 0-1

[Event "2nd Doppelbauer Kiel GM 2022"]
[Site "Kiel"]
[Date "2022.06.30"]
[Round "3.5"]
[White "Teclaf, Pawel"]
[Black "Farokhi, Keyvan"]
[Result "1-0"]
[ECO "A13"]
[WhiteElo "2537"]
[BlackElo "2360"]
[Annotator "TA"]
[PlyCount "111"]
[EventDate "2022.06.30"]
[EventType "tourn"]
[EventCountry "GER"]
[SourceTitle "playchess.com"]
[Source "ChessBase"]
[SourceQuality "1"]
[TimeControl "40/5400+30:1800+30"]

{[%evp 9,111,7,12,6,2,0,0,0,0,0,8,0,2,0,0,0,22,20,14,12,25,10,13,4,81,84,100,91,104,26,25,25,25,25,18,19,16,7,49,25,53,52,78,77,81,84,78,91,98,98,118,111,126,126,226,226,226,226,226,226,218,218,163,156,265,238,397,372,453,445,409,387,236,193,500,445,847,557,2520,1877,1613,1484,5218,5031,5268,5006,2207,61,61,61,5094,3268,29957,29965,29967,29970,29971,29972,29972,29973,29981,29975,29975,29976]} 1. Nf3 {[%emt 0:00:08]} d5 {[%emt 0:00:09]} 2. e3 {[%emt 0:00:07]} Nf6 {[%emt 0:00:31]} 3. c4 {[%emt 0:00:11]} e6 {[%emt 0:00:43]} 4. b3 {[%emt 0:00:36]} b6 {[%emt 0:00:39]} 5. Bb2 {[%emt 0:01:07]} Bb7 {[%emt 0:00:45]} 6. cxd5 {[%emt 0:00:45] A13: English Opening: 1...e6.} exd5 {[%emt 0:00:38]} 7. Nc3 {[%emt 0:02:07]} Nbd7 {[%emt 0:00:56]} 8. Rc1 {[%emt 0:01:00] The position is equal.} a6 {[%emt 0:00:29]} 9. d4 {[%emt 0:02:45]} Bd6 {[%emt 0:00:37]} 10. g3 {[%emt 0:00:05]} O-O {[%emt 0:07:14]} 11. Bg2 {[%emt 0:00:27]} Ne4 {[%emt 0:04:03]} 12. O-O {[%emt 1:27:12]} f5 {[%emt 0:09:00]} 13. Ne2 {[%emt 0:00:00]} Qe7 {[%emt 0:14:33]} 14. Nf4 {[%emt 0:00:00][%cal Of3e5]} a5 {[%emt 0:00:56] [#]} 15. Qc2 $146 {[%emt 0:00:00]} ({Predecessor:} 15. a4 Rac8 16. Nd3 Ba6 17. Re1 Ndf6 18. Nfe5 c5 19. Nf4 c4 20. bxc4 dxc4 21. f3 {0-1 (42) Mekhitarian,K (2554)-Meier,G (2621) Chess.com INT 2020}) 15... a4 {[%emt 0:07:12]} 16. bxa4 {[%emt 0:00:00][%cal Of3e5]} c5 {[%emt 0:05:29]} (16... c6 $11) 17. dxc5 $16 {[%emt 0:00:00]} bxc5 {[%emt 0:00:23][%cal Bb6c5,Bc5c4][%mdl 32]} 18. Qb3 {[%emt 0:00:00][%csl LRb7,LRd5] Inhibits Nb6.} Ndf6 {[%emt 0:01:16]} 19. Nh4 {[%emt 0:00:00]} ({White should try} 19. Bxf6 $16 Nxf6 20. Rfd1) 19... Bxf4 $11 {[%emt 0:18:07]} 20. exf4 {[%emt 0:00:00]} Qd7 {[%emt 0:00:35]} 21. Bxf6 {[%emt 0:00:00] Threatens to win with Be5. A strong pair of Bishops.} c4 $1 {[%emt 0:01:14] [#]} 22. Qb2 {[%emt 0:00:00] Hoping for Bd4.} Rxf6 {[%emt 0:00:22]} 23. Rfd1 $36 {[%emt 0:00:00][%cal Oh4f5][%mdl 2048] And now Nxf5! would win. White has good play.} Qc6 {[%emt 0:05:27]} (23... Rxa4 24. Nxf5 Rxf5 25. Bxe4 $16) 24. Bxe4 {[%emt 0:00:00]} (24. Rb1 $5 {[%cal Rb2b7]} c3 25. Qc2 $11 (25. Qxb7 c2 $11)) 24... dxe4 {[%emt 0:02:56]} 25. Qb5 {[%emt 0:00:00]} Rxa4 {[%emt 0:04:33]} 26. Rd8+ {[%emt 0:00:00]} Rf8 {[%emt 0:00:02]} 27. Rxf8+ {[%emt 0:00:19]} (27. Qxc6 {with more complications.} Bxc6 28. Rxf8+ Kxf8 29. Nxf5 Bd7 30. Ne3) 27... Kxf8 {[%emt 0:00:02]} 28. Qxc6 {[%emt 0:00:30]} (28. Qe5 {keeps more tension.} e3 29. f3 Qe8 30. Qd6+) 28... Bxc6 {[%emt 0:00:01]} 29. Nxf5 {[%emt 0:00:06]} Rxa2 $16 {[%emt 0:02:48][%mdl 4096] Endgame KRB-KRN} 30. Ne3 $1 {[%emt 0:00:33]} Bb5 {[%emt 0:00:58]} 31. Nxc4 {[%emt 0:01:42]} Bxc4 {[%emt 0:03:18]} (31... Bd7 $16 32. h4 Be6) 32. Rxc4 {[%emt 0:00:08] KR-KR} Ra1+ {[%emt 0:00:05]} 33. Kg2 {[%emt 0:00:03]} Re1 {[%emt 0:00:05]} 34. Rc3 {[%emt 0:00:20] Against e3} Ra1 {[%emt 0:00:35]} 35. Rc5 {[%emt 0:01:16]} Re1 {[%emt 0:00:22]} 36. Re5 {[%emt 0:01:05]} Kf7 {[%emt 0:01:09]} (36... g6 $16 37. g4 Kg7 38. Re7+ Kg8) 37. h4 {[%emt 0:00:21]} g6 $2 {[%emt 0:01:26]} (37... Kg6 {keeps fighting.} 38. g4 Kf7) 38. h5 $18 {[%emt 0:03:22]} gxh5 {[%emt 0:05:37]} 39. Rxh5 {[%emt 0:00:06]} Kg6 {[%emt 0:00:08]} 40. Rg5+ {[%emt 0:00:04]} Kf6 {[%emt 0:00:12]} 41. Re5 {[%emt 0:30:39]} h6 $2 {[%emt 0:34:01]} (41... Kf7 {is tougher.} 42. g4 Kf6 43. g5+ Kg6) 42. g4 $1 {[%emt 0:02:51]} Kf7 {[%emt 0:00:21] [#]} (42... Re2 $142 43. Kf1 Rb2 44. Rxe4 h5) 43. f5 $1 {[%emt 0:01:10][%cal Bf4f5,Bf5f6][%mdl 32] aiming for Re6.} Kf6 {[%emt 0:00:51]} 44. Re6+ {[%emt 0:00:10]} Kg7 {[%emt 0:00:54]} 45. Re7+ {[%emt 0:00:26]} Kg8 {[%emt 0:00:00]} 46. f6 {[%emt 0:00:00]} Re2 {[%emt 0:00:00]} 47. Rg7+ {[%emt 0:00:00]} Kf8 {[%emt 0:00:00] [#]} 48. Kf1 $2 {[%emt 0:00:00]} ({White has to play} 48. Kg3 $1 $18 Rb2 49. Rg6) 48... Ra2 $14 {[%emt 0:00:00]} 49. Rh7 {[%emt 0:00:00]} Ra3 $2 {[%emt 0:00:00][%mdl 8192] Black cannot hold the game after this.} (49... e3 $14) 50. Ke2 $18 {[%emt 0:00:00]} Rh3 {[%emt 0:00:00]} 51. g5 {[%emt 0:00:00][%cal Bg4g5,Bg5g6][%mdl 32] White mates.} Rf3 {[%emt 0:00:00]} 52. Rxh6 {[%emt 0:00:22]} Rf5 {[%emt 0:00:00]} 53. Rg6 {[%emt 0:00:53]} Rf3 {[%emt 0:00:00]} 54. Rg7 {[%emt 0:00:14]} Ra3 {[%emt 0:00:00]} 55. Rb7 {[%emt 0:02:21]} Rf3 {[%emt 0:00:00]} 56. g6 {[%emt 0:00:10] Weighted Error Value: White=0.20 (precise) /Black=0.39} 1-0

[Event "2nd Doppelbauer Kiel GM 2022"]
[Site "Kiel"]
[Date "2022.07.01"]
[Round "4.1"]
[White "Parvanyan, Ashot"]
[Black "Farokhi, Keyvan"]
[Result "1-0"]
[ECO "E08"]
[WhiteElo "2455"]
[BlackElo "2360"]
[Annotator "TA"]
[PlyCount "69"]
[EventDate "2022.06.30"]
[EventType "tourn"]
[EventCountry "GER"]
[SourceTitle "playchess.com"]
[Source "ChessBase"]
[SourceQuality "1"]
[TimeControl "40/5400+30:1800+30"]

{[%evp 16,69,9,18,18,12,10,12,40,23,66,92,103,79,88,79,89,18,5,-27,-7,-6,11,0,2,-32,-15,-122,-104,-117,-106,-117,-108,-138,-134,-107,-118,-142,-143,-109,-40,-33,-49,-29,-54,-67,-63,-63,-17,-18,583,570,1096,1050,989,904]} 1. Nf3 {[%emt 0:00:04]} d5 {[%emt 0:00:09]} 2. d4 {[%emt 0:00:07]} Nf6 {[%emt 0:00:09]} 3. c4 {[%emt 0:00:06]} e6 {[%emt 0:00:05]} 4. g3 {[%emt 0:00:37]} Be7 {[%emt 0:00:08]} 5. Bg2 {[%emt 0:00:05]} O-O {[%emt 0:00:10]} 6. O-O {[%emt 0:00:06]} c6 {[%emt 0:00:05]} 7. Qc2 {[%emt 0:00:37]} b6 {[%emt 0:00:09]} 8. Rd1 {[%emt 0:00:19]} Nbd7 {[%emt 0:00:13]} 9. b3 {[%emt 0:01:11]} Re8 {[%emt 0:00:12] E08: Closed Catalan: Main Line: 7 Qc2.} 10. Bf4 {[%emt 0:05:28]} Ba6 {[%emt 0:12:02]} 11. Nc3 {[%emt 0:05:10] [#]} b5 $146 {[%emt 0:04:43] The position is equal.} ({Predecessor:} 11... h6 12. e4 dxc4 13. Nd2 b5 14. bxc4 bxc4 15. Bf1 Nb6 16. a4 Bb4 17. a5 {0-1 (37) Neelotpal,D (2453)-Cheparinov,I (2669) Biel 2011}) 12. Ne5 {[%emt 0:29:15]} Nxe5 {[%emt 0:11:38]} 13. dxe5 {[%emt 0:00:12]} Nh5 {[%emt 0:00:41] [#]} 14. Be3 {[%emt 0:08:42]} g6 {[%emt 0:03:48]} 15. g4 {[%emt 0:04:43][%cal Rc4d5]} Ng7 {[%emt 0:00:13]} 16. Ne4 {[%emt 0:00:09]} ({Resist} 16. cxd5 exd5 17. Ne4 Qd7 $14) (16. cxb5 $16 cxb5 17. Ne4) 16... bxc4 $11 {[%emt 0:08:03]} 17. Bc5 {[%emt 0:21:32] aiming for Bxe7.} Bxc5 {[%emt 0:07:13]} (17... Rf8 $5) 18. Nxc5 {[%emt 0:00:03] Hoping for Qc3.} Qc8 {[%emt 0:00:14]} 19. bxc4 {[%emt 0:01:39]} Bxc4 {[%emt 0:00:46]} 20. Rab1 {[%emt 0:02:57]} (20. Ne4 $5 {[%cal Re4f6]} Rd8 21. Nd6 $11) 20... Qc7 {[%emt 0:04:22]} 21. f4 {[%emt 0:06:04]} (21. Rb7 $1 $11 {keeps the balance.} Qxe5 22. Nd7) 21... Reb8 $17 {[%emt 0:01:15]} 22. e3 {[%emt 0:02:29]} a5 {[%emt 0:01:56][%cal Ba7a5,Ba5a4][%mdl 32]} 23. Ne4 {[%emt 0:01:32]} Ne8 {[%emt 0:00:50] Against Nd6} 24. g5 {[%emt 0:01:48]} Qa7 {[%emt 0:06:32]} 25. Kf2 {[%emt 0:00:03]} a4 {[%emt 0:06:07]} 26. Nd2 {[%emt 0:02:24]} Bb5 {[%emt 0:01:15]} 27. Rdc1 {[%emt 0:00:14]} d4 {[%emt 0:04:48]} ({Black should try} 27... Nc7 $17 28. Nf3 Bc4) 28. Qc5 $1 $15 {[%emt 0:00:25]} dxe3+ {[%emt 0:01:36]} 29. Kxe3 {[%emt 0:02:42] [#] Threatens to win with Qxa7.} Qd7 {[%emt 0:03:38] Strongly threatening ...Qd3+.} 30. Ne4 {[%emt 0:00:17]} ({Reject} 30. Qd4 Qxd4+ 31. Kxd4 Rd8+ 32. Kc3 Rd3+ 33. Kc2 Rad8 $17) 30... Qd3+ {[%emt 0:02:16]} 31. Kf2 {[%emt 0:00:02]} Rd8 {[%emt 0:00:53]} (31... Qe2+ $1 $15 {feels stronger.} 32. Kg1 Rd8) 32. Bf3 $11 {[%emt 0:01:55]} Rd4 $2 {[%emt 0:01:35][%mdl 8192]} (32... Rd5 $11 33. Qe7 Rd7) 33. Rd1 $18 {[%emt 0:01:07] Active counter play! White is clearly winning.} Qxe4 {[%emt 0:09:18]} 34. Bxe4 {[%emt 0:00:34]} Rxe4 {[%emt 0:00:01]} 35. Rxb5 {[%emt 0:00:13] Weighted Error Value: White=0.18 (very precise) /Black=0.44} 1-0

[Event "2nd Doppelbauer Kiel GM 2022"]
[Site "Kiel"]
[Date "2022.07.01"]
[Round "4.2"]
[White "Meshkovs, Nikita"]
[Black "Teclaf, Pawel"]
[Result "1/2-1/2"]
[ECO "D02"]
[WhiteElo "2553"]
[BlackElo "2537"]
[Annotator "TA"]
[PlyCount "27"]
[EventDate "2022.06.30"]
[EventType "tourn"]
[EventCountry "GER"]
[SourceTitle "playchess.com"]
[Source "ChessBase"]
[SourceQuality "1"]
[TimeControl "40/5400+30:1800+30"]

{[%evp 11,27,6,1,7,23,23,15,0,0,0,8,0,0,0,0,0,0,-29]} 1. g3 {[%emt 0:00:03]} d5 {[%emt 0:01:09]} 2. Nf3 {[%emt 0:00:05]} c6 {[%emt 0:02:43]} 3. Bg2 {[%emt 0:00:07]} g6 {[%emt 0:03:46]} 4. d4 {[%emt 0:07:12]} Bg7 {[%emt 0:00:36]} 5. O-O {[%emt 0:00:21]} Nf6 {[%emt 0:00:11]} 6. c3 {[%emt 0:00:58]} O-O {[%emt 0:00:17]} 7. a4 {[%emt 0:00:22] 7.Re1 is setting a new trend. D02: 1 d4 d5 2 Nf3 sidelines, including 2...Nf6 3 g3 and 2...Nf6 3 Bf4.} Bg4 {[%emt 0:09:09] [#]} 8. Nbd2 $146 {[%emt 0:01:32]} ({Predecessor:} 8. Ne5 Bf5 9. Nd2 Nbd7 10. Ndf3 Nxe5 11. Nxe5 Nd7 12. Nxd7 Qxd7 13. Re1 Rfe8 {½-½ (13) Borges Feria,Y (2433)-Oliva Castaneda,K (2451) Havana 2018}) 8... Nbd7 {[%emt 0:03:18]} 9. Re1 {[%emt 0:02:48] The position is equal.} Re8 {[%emt 0:01:14]} 10. h3 {[%emt 0:04:07]} Bxf3 {[%emt 0:01:29]} 11. Nxf3 {[%emt 0:00:26]} e5 {[%emt 0:00:09]} 12. dxe5 {[%emt 0:00:07]} Nxe5 {[%emt 0:00:16]} 13. Nxe5 {[%emt 0:00:17]} Rxe5 {[%emt 0:00:07]} 14. Bf4 {[%emt 0:04:52] Not much happened in this game.  Weighted Error Value: White=0.03 (flawless) /Black=0.02 (flawless)} 1/2-1/2

[Event "2nd Doppelbauer Kiel GM 2022"]
[Site "Kiel"]
[Date "2022.07.01"]
[Round "4.3"]
[White "Ernst, Sipke"]
[Black "Hacker, Jonas"]
[Result "1-0"]
[ECO "E04"]
[WhiteElo "2547"]
[BlackElo "2396"]
[Annotator "TA"]
[PlyCount "137"]
[EventDate "2022.06.30"]
[EventType "tourn"]
[EventCountry "GER"]
[SourceTitle "playchess.com"]
[Source "ChessBase"]
[SourceQuality "1"]
[TimeControl "40/5400+30:1800+30"]

{[%evp 10,137,27,0,8,0,0,0,0,0,0,0,0,-1,0,0,32,0,41,14,70,61,77,30,27,-3,29,24,22,13,10,12,26,35,35,27,36,33,56,35,54,46,53,54,54,59,60,54,91,91,89,85,92,85,90,93,93,71,85,71,85,83,87,87,102,86,108,103,103,103,141,126,138,112,155,110,173,96,161,96,96,103,153,110,157,0,156,110,352,381,338,324,313,269,269,266,283,276,339,295,333,329,307,163,356,356,356,356,356,356,348,341,481,473,410,253,253,253,471,445,487,413,404,398,616,606,29977,29978,29977,155]} 1. d4 {[%emt 0:00:27]} Nf6 {[%emt 0:00:09]} 2. c4 {[%emt 0:00:09]} e6 {[%emt 0:00:07]} 3. g3 {[%emt 0:00:10]} d5 {[%emt 0:00:12]} 4. Nf3 {[%emt 0:00:14]} dxc4 {[%emt 0:00:12]} 5. Bg2 {[%emt 0:00:05]} a6 {[%emt 0:00:10]} 6. Ne5 {[%emt 0:00:14]} Bb4+ {[%emt 0:00:42] E04: Open Catalan: 5 Nf3.} 7. Bd2 {[%emt 0:01:09]} Qxd4 {[%emt 0:03:24] Hoping for ...Bxd2+.} 8. Bxb4 {[%emt 0:00:12]} Qxe5 {[%emt 0:00:15] The position is equal.} 9. Na3 $1 {[%emt 0:00:11]} (9. Nc3 Nbd7 10. f4 Qe3 $17) 9... Nc6 {[%emt 0:05:28]} 10. Bxc6+ {[%emt 0:00:35]} ({Don't blunder} 10. Nxc4 $2 Qb5 11. Nd6+ (11. Bxc6+ $2 Qxc6 12. O-O Qxc4 $19) 11... cxd6 $19) 10... bxc6 {[%emt 0:00:17]} 11. Qa4 {[%emt 0:09:05]} Bd7 {[%emt 0:06:35] And now ...c5 would win.} (11... Qxb2 $2 12. Rb1 Qxb1+ 13. Nxb1 $18) 12. Bc3 {[%emt 0:00:22] [#]} c5 $146 {[%emt 0:16:42]} ({Predecessor:} 12... Qf5 13. Bxf6 Qxf6 14. Nxc4 c5 15. Qc2 Bb5 16. Ne3 O-O 17. a4 Bd7 18. O-O Rfb8 {½-½ (33) Dard,M (2130)-Abdulmanov,E (2263) ICCF email 2016}) 13. Qa5 {[%emt 0:09:46]} Qd6 {[%emt 0:02:40]} (13... Qf5 $5 {[%cal Re8g8]}) 14. Rd1 {[%emt 0:13:01]} Qb6 {[%emt 0:02:14]} (14... Qc6 $11 15. O-O Nd5) 15. Nxc4 $14 {[%emt 0:02:02]} Qxa5 {[%emt 0:01:34]} 16. Bxa5 {[%emt 0:06:24]} ({White should try} 16. Nxa5 $16 Rg8 17. b3) 16... Bb5 $11 {[%emt 0:14:25]} 17. Ne5 {[%emt 0:09:55]} Nd7 {[%emt 0:02:30]} 18. Nxd7 {[%emt 0:00:07]} ({But not} 18. Bxc7 Rc8 19. Nxd7 Rxc7 $15) 18... Bxd7 {[%emt 0:00:13]} 19. O-O {[%emt 0:04:28]} Bb5 {[%emt 0:03:12]} 20. Rd2 {[%emt 0:01:52]} Ke7 {[%emt 0:08:05]} 21. Bxc7 {[%emt 0:01:58]} Rhc8 {[%emt 0:00:30]} 22. Ba5 {[%emt 0:00:04]} Ra7 {[%emt 0:00:50]} 23. Rc2 {[%emt 0:06:30]} Rd7 {[%emt 0:04:54]} 24. Rfc1 {[%emt 0:03:48]} Rc6 {[%emt 0:02:07]} 25. f3 {[%emt 0:05:13]} f6 {[%emt 0:04:03]} 26. b3 {[%emt 0:03:24][%cal Bb2b3,Bb3c4,Bc4c5][%mdl 32]} c4 $1 {[%emt 0:04:44]} 27. bxc4 {[%emt 0:03:54]} Ba4 {[%emt 0:00:14]} 28. Rb2 {[%emt 0:04:52]} Rd1+ {[%emt 0:00:33]} 29. Rxd1 {[%emt 0:00:05]} Bxd1 $16 {[%emt 0:00:05][%mdl 4096] Endgame KRB-KRB} 30. c5 {[%emt 0:02:00]} Kf7 {[%emt 0:00:50]} 31. Bb6 {[%emt 0:02:11]} Rc8 {[%emt 0:02:15]} 32. Rd2 {[%emt 0:01:27]} Ba4 {[%emt 0:00:11]} 33. g4 {[%emt 0:03:41]} Ke7 {[%emt 0:04:18]} 34. Kf2 {[%emt 0:00:45]} Be8 {[%emt 0:01:34]} 35. h4 {[%emt 0:00:44]} h5 {[%emt 0:00:46]} 36. g5 {[%emt 0:00:55]} Bc6 {[%emt 0:06:48]} 37. Kg3 {[%emt 0:00:38]} Rb8 {[%emt 0:01:05]} 38. e4 {[%emt 0:03:17]} Rc8 {[%emt 0:02:52]} 39. Rd6 {[%emt 0:00:19]} Bd7 {[%emt 0:00:59]} 40. f4 $1 {[%emt 0:01:51][%cal Bf3f4,Bf4f5][%mdl 32]} Bc6 {[%emt 0:00:57]} 41. f5 {[%emt 0:31:27]} Bd7 {[%emt 0:05:55]} 42. Kf4 {[%emt 0:00:00]} Rf8 {[%emt 0:02:23]} (42... e5+ $16 43. Kf3 Bb5) 43. g6 {[%emt 0:00:00]} (43. Ba5 $18) 43... Rc8 {[%emt 0:05:33]} (43... exf5 $16 44. exf5 Rc8) 44. Rd2 {[%emt 0:00:00]} (44. fxe6 $18 Bxe6 45. e5) 44... Rc6 {[%emt 0:02:23]} 45. a3 {[%emt 0:00:00] 0x0.001e6c689af5dp-1022s more active pieces.} Rc8 {[%emt 0:00:38]} (45... exf5 $142 46. exf5 Rc8 47. Re2+ Kf8) 46. Ba7 {[%emt 0:00:00]} Ra8 {[%emt 0:02:42]} (46... exf5 $142 47. exf5 Bb5) 47. Bb6 {[%emt 0:00:00] Threatens to win with fxe6.} Rc8 $1 {[%emt 0:00:01]} 48. Ba5 {[%emt 0:00:00]} (48. fxe6 $142 Bxe6 49. Rd6) 48... Ke8 {[%emt 0:09:14] [#] Loses the game.} (48... exf5 $16 49. Bb4 (49. exf5 Bxf5 50. c6 Bxg6 $16) 49... Ke8) 49. fxe6 $1 $18 {[%emt 0:00:00]} Bxe6 {[%emt 0:00:19]} 50. Rd6 {[%emt 0:00:00][%csl LRa6,LRe6]} Bd7 {[%emt 0:00:26]} 51. Rxa6 {[%emt 0:00:00]} Rxc5 {[%emt 0:00:08]} 52. Bb4 {[%emt 0:00:00]} Rc4 {[%emt 0:02:34]} 53. Ra8+ {[%emt 0:00:00]} Rc8 {[%emt 0:03:52]} 54. Ra5 {[%emt 0:00:00]} Bg4 {[%emt 0:01:02]} 55. Ra7 {[%emt 0:00:00]} Bd7 {[%emt 0:00:18]} 56. Ke3 {[%emt 0:00:00]} (56. a4 $142) 56... Rc6 $2 {[%emt 0:00:35]} (56... Kd8 57. Kd3 f5) 57. Ra8+ {[%emt 0:00:00]} Rc8 {[%emt 0:00:01]} 58. Ra5 {[%emt 0:00:00]} Bg4 {[%emt 0:00:44]} 59. Ra7 {[%emt 0:00:00]} Bd7 {[%emt 0:00:02]} 60. Kd4 {[%emt 0:00:00]} Rc6 {[%emt 0:00:31]} (60... Rc1 {might work better.} 61. a4 Kd8) 61. Ra8+ {[%emt 0:00:00]} Rc8 {[%emt 0:00:02]} 62. Ra5 {[%emt 0:00:00]} Bg4 {[%emt 0:02:26]} 63. Ra7 {[%emt 0:00:00]} Bd7 $2 {[%emt 0:00:00]} (63... Rd8+ 64. Ke3 Rd7 65. Ra8+ Rd8 66. Rxd8+ Kxd8) 64. a4 {[%emt 0:00:00][%cal Ba3a4,Ba4a5,Ba5a6][%mdl 32]} Rd8 {[%emt 0:00:20]} 65. Ke3 {[%emt 0:03:30]} Rc8 {[%emt 0:00:25]} 66. a5 {[%emt 0:02:14]} Rc6 {[%emt 0:00:36]} (66... Rc4 $142) 67. a6 {[%emt 0:03:22] Black must now prevent Rb7.} f5 {[%emt 0:00:02]} 68. Ra8+ {[%emt 0:00:15]} Rc8 {[%emt 0:00:09] [#]} 69. Rxc8+ $1 {[%emt 0:00:04] Weighted Error Value: White=0.17 (very precise) /Black=0.25 (precise)} 1-0